bitfinex/quotes_BTCUSD_20251104
["timestamp","ask_amount","ask_price","bid_price","bid_amount"]
[1762244329432,0.19302689,103960.0,103950.0,0.04659]
[1762244330116,0.19240019,103950.0,103940.0,0.37090973]
[1762244330332,0.19302689,103960.0,103950.0,0.20866]
[1762244330542,0.53302689,103960.0,103950.0,0.11676]
[1762244331014,0.53302689,103960.0,103950.0,0.11176]
[1762244331230,0.53602689,103960.0,103950.0,0.11176]
[1762244331434,0.53602689,103960.0,103950.0,0.11476]
[1762244331588,0.53602689,103960.0,103950.0,0.11176]
[1762244331929,0.53602689,103960.0,103950.0,0.11276]
[1762244332171,0.53602689,103960.0,103950.0,0.20466]
[1762244332386,0.53302689,103960.0,103950.0,0.20466]
[1762244332601,0.34064521,103960.0,103950.0,0.20466]
[1762244332821,0.34064521,103960.0,103950.0,0.20566]
[1762244333322,0.00064521,103960.0,103950.0,0.20566]
[1762244334201,0.00064521,103960.0,103950.0,0.20466]
[1762244334424,0.00064521,103960.0,103950.0,0.20366]
[1762244334691,0.00064521,103960.0,103950.0,0.26111697]
[1762244334910,0.00064521,103960.0,103950.0,0.27366332]
[1762244335350,0.00064521,103960.0,103950.0,0.21620635]
[1762244335570,0.00064521,103960.0,103950.0,0.21166]
[1762244337160,0.19302689,103960.0,103950.0,0.21166]
[1762244337618,0.00064521,103960.0,103950.0,0.21166]
[1762244337833,0.0295501,103960.0,103950.0,0.21166]
[1762244338053,0.00064521,103960.0,103950.0,0.20866]
[1762244338271,0.00064521,103960.0,103950.0,0.26691697]
[1762244338601,0.00064521,103960.0,103950.0,0.26391697]
[1762244339026,0.00064521,103960.0,103950.0,0.26691697]
[1762244339238,0.00064521,103960.0,103950.0,0.26491697]
[1762244339446,0.00064521,103960.0,103950.0,0.26191697]
[1762244339662,0.00064521,103960.0,103950.0,0.26691697]
[1762244340568,0.00064521,103960.0,103950.0,0.20866]
[1762244341002,0.53302689,103960.0,103950.0,0.20866]
[1762244341647,0.53302689,103960.0,103950.0,0.20666]
[1762244341860,0.53302689,103960.0,103950.0,0.20366]
[1762244341861,0.34064521,103960.0,103950.0,0.20366]
[1762244342070,0.34064521,103960.0,103950.0,0.20566]
[1762244342512,0.53302689,103960.0,103950.0,0.20366]
[1762244342725,0.53302689,103960.0,103950.0,0.20866]
[1762244343154,0.34064521,103960.0,103950.0,0.20866]
[1762244343379,0.02890002,103980.0,103960.0,0.09547907]
[1762244343634,0.22124529,103980.0,103970.0,0.11176]
[1762244343899,0.02890002,103980.0,103970.0,0.11176]
[1762244344129,10.0,104000.0,103990.0,0.09547907]
[1762244344349,10.02903821,104000.0,103990.0,0.20723907]
[1762244344734,10.00014615,104000.0,103990.0,0.29913907]
[1762244345174,10.19245384,104000.0,103990.0,0.29913907]
[1762244345409,10.53245384,104000.0,103990.0,0.29913907]
[1762244345627,10.53245384,104000.0,103990.0,0.30113907]
[1762244345845,10.34014615,104000.0,103990.0,0.33125298]
[1762244346059,10.34014615,104000.0,103990.0,0.30113907]
[1762244346296,10.53245384,104000.0,103990.0,0.30113907]
[1762244346732,10.34014615,104000.0,103990.0,0.30113907]
[1762244346959,10.53245384,104000.0,103990.0,0.30113907]
[1762244347167,10.34014615,104000.0,103990.0,0.30113907]
[1762244347373,10.34014615,104000.0,103990.0,0.33125298]
[1762244347736,10.53245384,104000.0,103990.0,0.33125298]
[1762244348142,10.53245384,104000.0,103990.0,0.20923907]
[1762244348356,10.53245384,104000.0,103990.0,0.14406907]
[1762244348920,10.53245384,104000.0,103990.0,0.14306907]
[1762244349215,10.53545384,104000.0,103990.0,0.001]
[1762244349396,0.53232618,103990.0,103980.0,0.09547907]
[1762244350190,0.53232618,103990.0,103980.0,0.16064907]
[1762244351654,0.53432618,103990.0,103980.0,0.09547907]
[1762244351877,0.56322597,103990.0,103980.0,0.09547907]
[1762244352103,0.56422597,103990.0,103980.0,0.09547907]
[1762244352315,0.60040825,103990.0,103980.0,0.09547907]
[1762244353932,0.55747002,103990.0,103980.0,0.09547907]
[1762244354831,0.53236318,103970.0,103960.0,0.09547907]
[1762244355450,0.5612676,103970.0,103960.0,0.09547907]
[1762244356084,0.5612676,103970.0,103960.0,0.09747907]
[1762244356307,0.5612676,103970.0,103960.0,0.09847907]
[1762244357417,0.5612676,103970.0,103960.0,0.09547907]
[1762244360315,0.56150856,103970.0,103960.0,0.09547907]
[1762244360999,0.55911,103970.0,103960.0,0.09547907]
[1762244362125,0.53238168,103960.0,103950.0,0.00064524]
[1762244362335,0.53238168,103960.0,103950.0,0.04941524]
[1762244362768,0.56128824,103960.0,103950.0,0.04941524]
[1762244363012,0.56128824,103960.0,103950.0,0.11160524]
[1762244363478,0.56128824,103960.0,103950.0,0.00113181]
[1762244363938,0.56128824,103960.0,103950.0,0.00313181]
[1762244364182,0.57608544,103960.0,103950.0,0.00313181]
[1762244364888,0.57608544,103960.0,103950.0,0.00413181]
[1762244365118,0.57608544,103960.0,103950.0,0.00313181]
[1762244365414,0.57708544,103960.0,103950.0,0.00313181]
[1762244365881,0.56228824,103960.0,103950.0,0.09661088]
[1762244366105,0.59847052,103960.0,103950.0,0.09661088]
[1762244366553,0.59847052,103960.0,103950.0,0.00113181]
[1762244367263,0.56858247,103950.0,103940.0,0.27518964]
[1762244367493,0.56906964,103950.0,103940.0,0.27518964]
[1762244370694,0.57106964,103950.0,103940.0,0.27518964]
[1762244370900,0.57206964,103950.0,103940.0,0.27518964]
[1762244372724,0.19588736,103950.0,103940.0,0.27518964]
[1762244372928,0.53588736,103950.0,103940.0,0.2754307]
[1762244373737,0.53569496,103950.0,103940.0,0.2754307]
[1762244376318,0.56460804,103950.0,103940.0,0.2754307]
[1762244378533,0.58503934,103950.0,103940.0,0.2754307]
[1762244378948,0.56460804,103950.0,103940.0,0.2754307]
[1762244379590,0.58503973,103950.0,103940.0,0.2754307]
[1762244380230,0.59980465,103950.0,103940.0,0.2754307]
[1762244381068,0.58503973,103950.0,103940.0,0.2754307]
[1762244381885,0.59980465,103950.0,103940.0,0.2754307]
[1762244383672,0.63598693,103950.0,103940.0,0.2754307]
[1762244384064,0.62122201,103950.0,103940.0,0.2754307]
[1762244384265,0.62122848,103950.0,103940.0,0.2754307]
[1762244388874,0.62122848,103950.0,103940.0,4e-08]
[1762244392645,0.6701903,103950.0,103940.0,4e-08]
[1762244393332,0.62122848,103950.0,103940.0,4e-08]
[1762244395780,0.64674937,103950.0,103940.0,4e-08]
[1762244396316,0.66155004,103950.0,103940.0,4e-08]
[1762244396720,0.66158525,103950.0,103940.0,4e-08]
[1762244397332,0.68717697,103950.0,103940.0,4e-08]
[1762244397547,0.53243721,103930.0,103920.0,0.0281317]
[1762244397781,0.5579581,103930.0,103920.0,0.0281317]
[1762244397989,0.57842779,103930.0,103920.0,0.0281317]
[1762244398143,0.60735004,103930.0,103920.0,1e-08]
[1762244398374,0.61735003,103930.0,103920.0,1e-08]
[1762244398572,0.53247425,103910.0,103900.0,0.02]
[1762244398794,0.55799514,103910.0,103900.0,0.02]
[1762244399198,0.57279679,103910.0,103900.0,0.02]
[1762244399653,0.55799514,103910.0,103900.0,0.02]
[1762244399829,0.55848201,103910.0,103900.0,0.02]
[1762244400242,0.57661962,103910.0,103900.0,0.02]
[1762244400779,0.6128019,103910.0,103900.0,0.02]
[1762244400964,0.6138019,103910.0,103900.0,0.02]
[1762244401228,0.38514537,103910.0,103900.0,0.02]
[1762244401374,0.01962448,103910.0,103900.0,0.02]
[1762244401796,0.21209873,103910.0,103900.0,0.02]
[1762244401996,0.35962448,103910.0,103900.0,0.02]
[1762244402162,0.01862448,103910.0,103900.0,0.10285927]
[1762244402370,0.01662448,103910.0,103900.0,0.1373093]
[1762244402594,0.01662448,103910.0,103900.0,0.2338493]
[1762244402791,0.01662448,103910.0,103900.0,0.21860003]
[1762244403236,0.01662448,103910.0,103900.0,0.21460003]
[1762244403626,0.01662448,103910.0,103900.0,0.22060003]
[1762244403912,0.00064535,103950.0,103930.0,0.09547907]
[1762244404104,0.02111224,103950.0,103930.0,0.09561934]
[1762244404297,0.00064535,103950.0,103930.0,0.14377934]
[1762244404430,0.01698265,103950.0,103940.0,0.01924187]
[1762244404633,0.00064535,103950.0,103940.0,0.01924187]
[1762244404862,0.34064535,103950.0,103940.0,0.01924187]
[1762244405291,0.00064535,103950.0,103940.0,0.01924187]
[1762244405490,0.35646612,103950.0,103940.0,0.01924187]
[1762244405735,0.00064535,103950.0,103940.0,0.04529799]
[1762244405987,0.00064535,103950.0,103940.0,0.04729799]
[1762244406201,0.00064535,103950.0,103940.0,0.002]
[1762244406409,0.34064535,103950.0,103940.0,0.008]
[1762244406616,0.00064535,103950.0,103940.0,0.008]
[1762244406818,0.34064535,103950.0,103940.0,0.008]
[1762244407269,0.54934975,103950.0,103940.0,0.008]
[1762244408870,0.35694956,103950.0,103940.0,0.008]
[1762244409088,0.54934975,103950.0,103940.0,0.008]
[1762244409307,0.56981781,103950.0,103940.0,0.008]
[1762244409749,0.54934975,103950.0,103940.0,0.008]
[1762244410057,0.54934975,103950.0,103940.0,0.002]
[1762244410265,0.54934975,103950.0,103940.0,0.006]
[1762244410912,0.54934975,103950.0,103940.0,0.004]
[1762244411340,0.35694956,103950.0,103940.0,0.004]
[1762244411559,0.35694956,103950.0,103940.0,0.01924187]
[1762244411788,0.54934975,103950.0,103940.0,0.002]
[1762244412245,0.54934975,103950.0,103940.0,0.001]
[1762244412503,0.65494633,103950.0,103940.0,3e-08]
[1762244412708,0.21793959,103940.0,103930.0,0.0958604]
[1762244413652,0.23838827,103940.0,103930.0,0.0958604]
[1762244413882,0.55793959,103940.0,103930.0,0.0958604]
[1762244414104,0.5324187,103940.0,103930.0,0.0958604]
[1762244414324,0.34,103940.0,103930.0,0.0958604]
[1762244414555,0.5334187,103940.0,103930.0,0.10544644]
[1762244414779,0.5334187,103940.0,103930.0,0.0958604]
[1762244415006,0.5334187,103940.0,103930.0,0.0968604]
[1762244415221,0.01630421,103950.0,103930.0,0.2542804]
[1762244415432,0.01630421,103950.0,103940.0,0.01924187]
[1762244415642,0.19238307,103960.0,103940.0,0.01924187]
[1762244415855,0.19238307,103960.0,103950.0,0.09547907]
[1762244416077,0.53238168,103960.0,103950.0,0.09547907]
[1762244417396,0.54820967,103960.0,103950.0,0.09547907]
[1762244417814,0.54820967,103960.0,103950.0,0.09647907]
[1762244418704,0.54820967,103960.0,103950.0,0.10047907]
[1762244419378,0.54909591,103960.0,103950.0,0.10047907]
[1762244420503,0.5746168,103960.0,103950.0,0.10047907]
[1762244421183,0.5746168,103960.0,103950.0,0.004]
[1762244421409,0.5756168,103960.0,103950.0,0.004]
[1762244421620,0.53241419,103950.0,103930.0,0.0958604]
[1762244422234,0.34,103950.0,103930.0,0.20711944]
[1762244422435,0.53240062,103950.0,103930.0,0.11468944]
[1762244423487,0.34,103950.0,103930.0,0.11468944]
[1762244423693,0.34,103950.0,103940.0,0.06499]
[1762244423904,0.34,103950.0,103940.0,0.15742]
[1762244424773,0.53240019,103950.0,103940.0,0.15742]
[1762244424971,0.34,103950.0,103940.0,0.15742]
[1762244425238,0.53240019,103950.0,103940.0,0.15742]
[1762244425463,0.53240019,103950.0,103940.0,0.15942]
[1762244426365,0.53240019,103950.0,103940.0,0.16542]
[1762244426587,0.53240019,103950.0,103940.0,0.008]
[1762244426588,0.55792108,103950.0,103940.0,0.008]
[1762244426799,0.55792108,103950.0,103940.0,0.002]
[1762244426800,0.59410336,103950.0,103940.0,0.002]
[1762244427016,0.5324187,103940.0,103930.0,0.0958604]
[1762244427448,0.55793959,103940.0,103930.0,0.0958604]
[1762244428513,0.59412187,103940.0,103930.0,0.00038133]
[1762244429209,0.55793959,103940.0,103930.0,0.00138133]
[1762244429422,0.5334187,103940.0,103930.0,0.00138133]
[1762244429633,0.5334187,103940.0,103930.0,0.0968604]
[1762244430301,0.5334187,103940.0,103930.0,0.1589604]
[1762244430523,0.1934187,103940.0,103930.0,0.2544804]
[1762244430769,0.1934187,103940.0,103930.0,0.27992844]
[1762244431168,0.5334187,103940.0,103930.0,0.2544804]
[1762244431383,0.341,103940.0,103930.0,0.2544804]
[1762244431603,0.001,103940.0,103930.0,0.2544804]
[1762244432053,0.1934187,103940.0,103930.0,0.2544804]
[1762244432261,0.1934187,103940.0,103930.0,0.2514804]
[1762244432262,0.341,103940.0,103930.0,0.2514804]
[1762244432468,0.5334187,103940.0,103930.0,0.2514804]
[1762244432681,0.5324187,103940.0,103930.0,0.27662844]
[1762244432936,0.5324187,103940.0,103930.0,0.2514804]
[1762244433140,0.5324187,103940.0,103930.0,0.2594804]
[1762244433141,0.5334187,103940.0,103930.0,0.2594804]
[1762244434009,0.341,103940.0,103930.0,0.2594804]
[1762244434214,0.341,103940.0,103930.0,0.2624804]
[1762244434425,0.341,103940.0,103930.0,0.28872844]
[1762244435061,0.341,103940.0,103930.0,0.2624804]
[1762244438164,0.001,103940.0,103930.0,0.2624804]
[1762244440409,0.34,103950.0,103930.0,0.28160262]
[1762244440627,0.34,103950.0,103940.0,0.16058187]
[1762244440834,0.34,103950.0,103940.0,0.25113832]
[1762244441067,0.34,103950.0,103940.0,0.23189645]
[1762244441305,0.00088624,103960.0,103940.0,0.23189645]
[1762244441526,0.00088624,103960.0,103950.0,0.17681908]
[1762244441798,0.20194406,103990.0,103950.0,0.2914613]
[1762244442019,0.34,103980.0,103960.0,0.11475816]
[1762244442295,0.34,103980.0,103960.0,0.16057816]
[1762244442543,0.34072281,103980.0,103960.0,0.16057816]
[1762244443032,0.00072281,103980.0,103960.0,0.16057816]
[1762244443313,0.00072281,103980.0,103970.0,0.0621]
[1762244443566,0.00072281,103980.0,103970.0,0.28493711]
[1762244444765,0.00086896,103980.0,103970.0,0.32311939]
[1762244445281,0.00086896,103980.0,103970.0,0.51348257]
[1762244445537,0.00086896,103980.0,103970.0,0.52348256]
[1762244445784,0.00086896,103980.0,103970.0,0.53748255]
[1762244446025,0.00086896,103980.0,103970.0,0.54748255]
[1762244446275,0.00086896,103980.0,103970.0,0.53748256]
[1762244446542,0.00086896,103980.0,103970.0,0.54748255]
[1762244447133,9.91090849,104000.0,103990.0,0.09547907]
[1762244447342,9.91090849,104000.0,103990.0,0.25730152]
[1762244447591,9.91090849,104000.0,103990.0,0.35306152]
[1762244447812,9.91139015,104000.0,103990.0,0.35306152]
[1762244448028,9.91139015,104000.0,103990.0,0.25730152]
[1762244448246,10.25139015,104000.0,103990.0,0.35306152]
[1762244448461,10.26800936,104000.0,103990.0,0.35306152]
[1762244448674,10.26800936,104000.0,103990.0,0.35606152]
[1762244450810,10.26800936,104000.0,103990.0,0.36006152]
[1762244451249,9.99305457,104000.0,103990.0,0.36006152]
[1762244451472,9.4197387,104000.0,103990.0,0.3962438]
[1762244451682,9.4197387,104000.0,103990.0,0.58856998]
[1762244452425,9.4197387,104000.0,103990.0,0.3962438]
[1762244453805,9.4197387,104000.0,103990.0,0.58856998]
[1762244454028,9.4197387,104000.0,103990.0,0.3962438]
[1762244454248,9.4197387,104000.0,103990.0,0.58856998]
[1762244454496,9.34194481,104000.0,103990.0,0.5030909]
[1762244455574,9.00194481,104000.0,103990.0,0.51309089]
[1762244456046,7.23784569,104000.0,103990.0,0.48069066]
[1762244456271,6.3901817,104000.0,103990.0,1.28205846]
[1762244456517,6.0021682,104000.0,103990.0,1.48205846]
[1762244456751,5.53119267,104000.0,103990.0,1.48707907]
[1762244456972,5.53119267,104000.0,103990.0,1.48307907]
[1762244456973,5.45671697,104000.0,103990.0,1.48307907]
[1762244457202,5.16009839,104000.0,103990.0,1.98307907]
[1762244457439,4.8158343,104000.0,103990.0,1.98807907]
[1762244457665,4.51974638,104000.0,103990.0,1.98507907]
[1762244457911,4.34411146,104000.0,103990.0,1.98207907]
[1762244458137,4.00585119,104000.0,103990.0,1.99997849]
[1762244458376,3.82853649,104000.0,103990.0,1.99997849]
[1762244458625,3.47283623,104000.0,103990.0,1.99997849]
[1762244458852,3.29783105,104000.0,103990.0,2.00097849]
[1762244459075,3.22564535,104000.0,103990.0,2.00097849]
[1762244459298,2.57707897,104000.0,103990.0,2.00097849]
[1762244459522,2.44924354,104000.0,103990.0,2.00097849]
[1762244459795,2.09939009,104000.0,103990.0,2.00097849]
[1762244460017,1.85650602,104000.0,103990.0,2.10237849]
[1762244460236,1.55218591,104000.0,103990.0,2.10237849]
[1762244460460,1.32484851,104000.0,103990.0,2.10237849]
[1762244460682,1.11761346,104000.0,103990.0,2.10237849]
[1762244460897,0.90213757,104000.0,103990.0,2.10237849]
[1762244461171,0.025,104040.0,104030.0,0.99843448]
[1762244461377,0.04614509,104050.0,104040.0,0.642806]
[1762244461598,0.01737765,104050.0,104040.0,0.75737542]
[1762244461812,0.0254,104060.0,104050.0,0.45839753]
[1762244462035,0.02554617,104060.0,104050.0,1.12188698]
[1762244462252,0.02699019,104060.0,104050.0,1.12188698]
[1762244462487,0.02699019,104060.0,104050.0,1.25188699]
[1762244462702,0.02699019,104060.0,104050.0,1.46188698]
[1762244462913,0.02699019,104060.0,104050.0,1.4257047]
[1762244463350,0.02699019,104060.0,104050.0,1.46188698]
[1762244464277,0.02699019,104060.0,104050.0,1.48788698]
[1762244466124,1e-08,104060.0,104050.0,1.48788698]
[1762244466361,1e-08,104060.0,104050.0,1.68788698]
[1762244466592,1e-08,104060.0,104050.0,1.48788698]
[1762244467977,0.0254,104070.0,104060.0,0.25837905]
[1762244468196,0.0254,104070.0,104060.0,0.37831847]
[1762244468428,0.0004,104100.0,104080.0,0.25834212]
[1762244468661,0.0004,104100.0,104090.0,0.79832366]
[1762244468864,0.00054604,104100.0,104090.0,0.98267308]
[1762244469720,1e-08,104100.0,104090.0,0.98267308]
[1762244470852,1e-08,104100.0,104090.0,1.00267308]
[1762244471537,1e-08,104110.0,104100.0,0.7005352]
[1762244471772,0.0004,104150.0,104140.0,0.39204916]
[1762244471992,0.00054601,104150.0,104140.0,0.47419364]
[1762244472212,0.00054601,104150.0,104140.0,0.56995364]
[1762244472882,0.00054601,104150.0,104140.0,0.93778902]
[1762244473328,0.00054601,104150.0,104140.0,0.92778903]
[1762244473544,0.00054601,104150.0,104140.0,0.93778902]
[1762244473788,1e-08,104150.0,104140.0,0.93778902]
[1762244474037,0.00216354,104150.0,104140.0,0.95578902]
[1762244474480,0.00164354,104150.0,104140.0,0.94078902]
[1762244474701,0.00164354,104150.0,104140.0,0.58078904]
[1762244474929,0.00164354,104150.0,104140.0,0.33377136]
[1762244475179,0.00893025,104180.0,104170.0,0.02214]
[1762244475397,0.0004866,104180.0,104170.0,0.28946606]
[1762244475622,0.0004866,104180.0,104170.0,0.41700834]
[1762244475841,0.0004866,104180.0,104170.0,0.62700833]
[1762244477370,0.0014866,104180.0,104170.0,1.09437614]
[1762244477598,0.0004866,104180.0,104170.0,1.09437614]
[1762244477860,0.0004866,104180.0,104170.0,1.41837614]
[1762244478081,0.0004,104190.0,104180.0,0.24815768]
[1762244478294,0.00054589,104190.0,104180.0,0.54785768]
[1762244478730,0.00054589,104190.0,104180.0,0.34785768]
[1762244479181,0.00054589,104190.0,104180.0,0.33785769]
[1762244479396,0.00054589,104190.0,104180.0,0.34785768]
[1762244480315,0.00979334,104220.0,104210.0,0.00999999]
[1762244480546,8e-05,104230.0,104210.0,0.14361792]
[1762244480762,0.01610898,104220.0,104210.0,0.11364792]
[1762244480977,0.00022586,104230.0,104220.0,0.06792356]
[1762244481195,0.00022586,104230.0,104220.0,0.08570726]
[1762244481418,0.00214669,104230.0,104220.0,0.14855726]
[1762244481681,0.00214669,104230.0,104220.0,0.16774743]
[1762244482342,0.00214669,104230.0,104220.0,0.36964916]
[1762244482571,0.01854442,104230.0,104220.0,0.36045898]
[1762244483073,0.01854442,104230.0,104220.0,0.16855724]
[1762244483269,0.63900607,104260.0,104230.0,0.10895]
[1762244483495,0.24809887,104250.0,104230.0,0.07368425]
[1762244483715,0.24809887,104250.0,104220.0,0.08192356]
[1762244483716,0.53188333,104230.0,104220.0,0.03417726]
[1762244483939,0.57952333,104230.0,104220.0,0.02017726]
[1762244484184,0.67719333,104230.0,104220.0,0.02017726]
[1762244484433,0.48531,104230.0,104220.0,0.03817726]
[1762244484660,0.38764,104230.0,104220.0,0.03817726]
[1762244484872,0.57952333,104230.0,104220.0,0.03817726]
[1762244485089,0.67719333,104230.0,104220.0,0.03817726]
[1762244485756,0.71337561,104230.0,104220.0,0.03817726]
[1762244485975,0.71337561,104230.0,104220.0,0.02017726]
[1762244486197,0.67719333,104230.0,104220.0,0.02017726]
[1762244486644,0.71337561,104230.0,104220.0,0.03017726]
[1762244487103,0.67719333,104230.0,104220.0,0.02017726]
[1762244487325,0.38666,104230.0,104220.0,0.02017726]
[1762244487537,0.04666,104230.0,104220.0,0.02017726]
[1762244487753,0.00023999,104240.0,104220.0,0.11180743]
[1762244487990,0.00023999,104240.0,104230.0,0.04795]
[1762244488205,0.34023999,104240.0,104230.0,0.0657337]
[1762244488437,0.38689999,104240.0,104230.0,0.0657337]
[1762244488667,0.00023999,104240.0,104230.0,0.1988537]
[1762244489120,0.0164238,104250.0,104230.0,0.1988537]
[1762244489384,0.0164238,104250.0,104240.0,0.11058649]
[1762244489605,0.02643,104270.0,104240.0,0.14749241]
[1762244489834,0.12521584,104270.0,104240.0,0.14749241]
[1762244490059,0.02657584,104270.0,104240.0,0.14749241]
[1762244490278,0.02657584,104270.0,104250.0,0.09551]
[1762244490496,0.04261483,104270.0,104260.0,0.01918281]
[1762244490724,0.01618483,104270.0,104260.0,0.09341651]
[1762244490958,0.01618483,104270.0,104260.0,0.18802651]
[1762244491178,0.01618483,104270.0,104260.0,0.20714873]
[1762244491401,0.01618483,104270.0,104260.0,0.18796592]
[1762244491619,0.01618483,104270.0,104260.0,0.39897685]
[1762244491846,0.01618483,104270.0,104260.0,0.18796592]
[1762244492073,0.01618483,104270.0,104260.0,0.20714873]
[1762244492311,0.01618483,104270.0,104260.0,0.39897685]
[1762244492533,0.01618483,104270.0,104260.0,0.39979402]
[1762244492967,0.01618483,104270.0,104260.0,0.2199659]
[1762244493216,0.01618483,104270.0,104260.0,0.41179402]
[1762244493487,0.00014584,104270.0,104260.0,0.38979403]
[1762244493710,0.07904,104310.0,104270.0,0.01999998]
[1762244493711,0.0004,104310.0,104270.0,0.01999998]
[1762244493924,0.00088602,104310.0,104300.0,0.04574]
[1762244494144,0.20926229,104310.0,104300.0,0.0635237]
[1762244494358,0.01752612,104310.0,104300.0,0.0635237]
[1762244494575,0.20926229,104310.0,104300.0,0.0177837]
[1762244494800,0.37618228,104310.0,104300.0,0.0177837]
[1762244495022,0.07865,104320.0,104300.0,0.0177837]
[1762244495254,0.27051656,104320.0,104300.0,0.0177837]
[1762244495474,0.19341488,104310.0,104300.0,0.0177837]
[1762244495703,0.53341488,104310.0,104300.0,0.0177837]
[1762244495944,0.22959716,104310.0,104300.0,0.0177837]
[1762244496199,0.56959716,104310.0,104300.0,0.0177837]
[1762244496421,0.64825716,104310.0,104300.0,0.0177837]
[1762244496641,0.56959716,104310.0,104300.0,0.0257837]
[1762244497123,0.34167871,104310.0,104300.0,0.17902915]
[1762244497365,0.34167871,104310.0,104300.0,0.1598537]
[1762244497785,0.00167871,104310.0,104300.0,0.15022815]
[1762244497994,0.19341488,104310.0,104300.0,0.0355427]
[1762244498216,0.34,104300.0,104290.0,0.16463222]
[1762244498671,0.34,104300.0,104290.0,0.19785222]
[1762244498885,0.53175455,104300.0,104290.0,0.19785222]
[1762244500031,0.53175455,104300.0,104290.0,0.11234222]
[1762244500251,0.64958683,104300.0,104290.0,0.01]
[1762244500698,0.56793683,104300.0,104290.0,0.06]
[1762244500913,0.34,104300.0,104290.0,0.09055]
[1762244501141,0.34,104300.0,104290.0,0.18606]
[1762244501397,0.53152155,104300.0,104290.0,0.09055]
[1762244501672,0.56770383,104300.0,104290.0,0.06]
[1762244502193,0.56770383,104300.0,104290.0,0.05]
[1762244502429,0.22795522,104290.0,104280.0,0.05]
[1762244502465,0.22795522,104290.0,104270.0,0.0415]
[1762244502466,0.22797361,104280.0,104270.0,0.0415]
[1762244502674,0.19179133,104280.0,104270.0,0.13701]
[1762244502887,0.23842294,104290.0,104270.0,0.16585]
[1762244503161,0.66093155,104300.0,104270.0,0.0415]
[1762244503162,0.54310927,104300.0,104270.0,0.0415]
[1762244503356,0.20334227,104300.0,104290.0,0.05]
[1762244503585,0.20134227,104300.0,104290.0,0.07242]
[1762244503829,0.2027813,104300.0,104290.0,0.07290602]
[1762244504038,0.00143903,104300.0,104290.0,0.18759331]
[1762244504249,0.21799198,104320.0,104290.0,0.18759331]
[1762244504457,0.20130458,104320.0,104310.0,0.05453]
[1762244504665,0.54130458,104320.0,104310.0,0.05453]
[1762244504874,0.54130458,104320.0,104310.0,0.04795]
[1762244505293,0.56791845,104310.0,104290.0,0.05048602]
[1762244505506,0.56791845,104310.0,104290.0,0.14143602]
[1762244505715,0.19175455,104300.0,104290.0,0.05048602]
[1762244505925,0.19175455,104300.0,104290.0,0.14743602]
[1762244506138,0.19475455,104300.0,104290.0,0.18140602]
[1762244506341,0.23093683,104300.0,104290.0,0.09045602]
[1762244506546,0.22793683,104300.0,104290.0,0.08445602]
[1762244506754,0.22793683,104300.0,104290.0,0.09245602]
[1762244506973,0.03618228,104300.0,104290.0,0.18282602]
[1762244507181,0.53173617,104310.0,104290.0,0.18282602]
[1762244507395,0.19175455,104300.0,104290.0,0.18282602]
[1762244507608,0.19275455,104300.0,104290.0,0.18282602]
[1762244508021,0.001,104300.0,104290.0,0.18282602]
[1762244508229,0.19175455,104300.0,104290.0,0.05848602]
[1762244508437,0.34,104300.0,104290.0,0.19813602]
[1762244508637,0.34,104300.0,104290.0,0.19013602]
[1762244508861,0.34,104300.0,104290.0,0.20925824]
[1762244509062,0.34,104300.0,104290.0,0.21925824]
[1762244509284,0.21754618,104320.0,104290.0,0.21925824]
[1762244509552,0.25372846,104320.0,104310.0,0.09555]
[1762244509774,0.59372846,104320.0,104310.0,0.11467222]
[1762244509976,0.59420791,104320.0,104310.0,0.13251843]
[1762244510182,0.59420791,104320.0,104310.0,0.01784621]
[1762244510599,0.68297791,104320.0,104310.0,0.01784621]
[1762244510813,0.68597791,104320.0,104310.0,0.01784621]
[1762244511240,0.19175455,104300.0,104290.0,0.14743602]
[1762244511456,0.22793683,104300.0,104290.0,0.14743602]
[1762244511661,0.22793683,104300.0,104290.0,0.08909602]
[1762244511873,0.22793683,104300.0,104290.0,0.08309602]
[1762244512743,0.22893683,104300.0,104290.0,0.08309602]
[1762244512952,0.03718228,104300.0,104290.0,0.09109602]
[1762244513165,0.22793683,104300.0,104290.0,0.18143602]
[1762244513602,0.22993683,104300.0,104290.0,0.18143602]
[1762244514019,0.22993683,104300.0,104290.0,0.05848602]
[1762244514649,0.23081683,104300.0,104290.0,0.00848602]
[1762244514884,0.28204455,104300.0,104290.0,0.00848602]
[1762244515104,0.31822683,104300.0,104290.0,0.00848602]
[1762244515306,0.09450974,104300.0,104290.0,0.00848602]
[1762244515514,0.28626429,104300.0,104290.0,0.00848602]
[1762244517594,0.28826429,104300.0,104290.0,0.00848602]
[1762244517804,0.06032746,104300.0,104290.0,0.00848602]
[1762244518020,0.002,104300.0,104290.0,0.20086602]
[1762244518431,0.002,104300.0,104290.0,0.20686602]
[1762244518863,0.04017975,104310.0,104290.0,0.20086602]
[1762244519070,0.23191811,104310.0,104290.0,0.20086602]
[1762244519277,0.57191811,104310.0,104290.0,0.20886602]
[1762244519705,0.19175455,104300.0,104290.0,0.05572602]
[1762244519937,0.53175455,104300.0,104290.0,0.05772602]
[1762244520148,0.34,104300.0,104290.0,0.05572602]
[1762244520584,0.32802271,104300.0,104290.0,0.04872602]
[1762244520802,0.32802271,104300.0,104290.0,0.04772602]
[1762244521020,0.32802271,104300.0,104290.0,0.21086602]
[1762244521471,0.32832271,104300.0,104290.0,0.00048602]
[1762244521685,0.6418136,104300.0,104290.0,0.00048602]
[1762244521902,0.58578954,104300.0,104290.0,0.01048602]
[1762244522352,0.58578954,104300.0,104290.0,0.01148602]
[1762244522639,0.56797361,104280.0,104270.0,0.50112254]
[1762244522840,0.56827361,104280.0,104270.0,0.50112254]
[1762244523057,0.64399361,104280.0,104270.0,0.50112254]
[1762244523484,0.64345762,104280.0,104270.0,0.50112254]
[1762244524628,0.64399361,104280.0,104270.0,0.50112254]
[1762244524849,0.60781133,104280.0,104270.0,0.50112254]
[1762244525357,0.64499361,104280.0,104270.0,0.50112254]
[1762244525789,0.64399361,104280.0,104270.0,0.50112254]
[1762244526004,0.64699361,104280.0,104270.0,0.50112254]
[1762244526218,0.64399361,104280.0,104270.0,0.50112254]
[1762244526438,0.3403,104280.0,104270.0,0.50112254]
[1762244526657,0.3413,104280.0,104270.0,0.50112254]
[1762244526873,0.55969133,104280.0,104270.0,0.50112254]
[1762244527086,0.53309133,104280.0,104270.0,0.50112254]
[1762244527292,0.3413,104280.0,104270.0,0.50112254]
[1762244527475,0.53209133,104280.0,104270.0,0.50112254]
[1762244527697,0.07621,104290.0,104270.0,0.55336254]
[1762244527996,0.04961,104290.0,104280.0,0.01917913]
[1762244528421,0.06307228,104300.0,104280.0,0.15384135]
[1762244528637,0.25483007,104300.0,104280.0,0.06289135]
[1762244528869,0.26828294,104290.0,104280.0,0.01912222]